bitfinex/quotes_ETHUSD_20240917
["timestamp","ask_amount","ask_price","bid_price","bid_amount"]
[1726616717099,4.27032,2341.8,2341.4,3.32183715]
[1726616719519,0.0392141,2341.9,2341.4,7.59275715]
[1726616720308,4.27022,2341.8,2341.4,3.32183715]
[1726616720511,4.27022,2341.8,2341.4,2.4934]
[1726616721582,8.54054,2341.8,2341.4,2.4934]
[1726616721783,8.54055,2341.8,2341.4,2.4934]
[1726616722102,4.27022,2341.8,2341.4,2.4934]
[1726616722619,0.0392141,2341.9,2341.6,2.3111]
[1726616724183,4.3092541,2341.9,2341.6,2.3111]
[1726616725004,4.27022,2341.8,2341.6,2.3111]
[1726616730124,0.0392141,2341.9,2341.7,1.51979151]
[1726616730321,0.0392141,2341.9,2341.8,2.3585]
[1726616735168,0.0392141,2341.9,2341.8,6.82951213]
[1726616735459,0.0392141,2341.9,2341.8,11.64972213]
[1726616735616,0.0392141,2341.9,2341.8,18.83453]
[1726616735952,0.0392141,2341.9,2341.8,20.86996215]
[1726616737629,0.0392141,2341.9,2341.8,16.59975215]
[1726616737827,0.0392141,2341.9,2341.8,2.4739]
[1726616738038,0.0392141,2341.9,2341.6,6.73028]
[1726616739133,0.0392141,2341.9,2341.7,4.27037]
[1726616739365,0.0392141,2341.9,2341.7,5.79016151]
[1726616739953,0.0392141,2341.9,2341.7,4.27037]
[1726616740180,0.0392141,2341.9,2341.8,0.673007]
[1726616740320,0.0392141,2341.9,2341.8,4.943217]
[1726616740519,0.0392141,2341.9,2341.8,0.673007]
[1726616741533,0.0392141,2341.9,2341.8,4.943217]
[1726616741844,0.0392141,2341.9,2341.8,0.673007]
[1726616742445,0.0392141,2341.9,2341.8,7.402917]
[1726616746830,0.0392141,2341.9,2341.8,11.673127]
[1726616755971,0.0392141,2341.9,2341.8,12.23608185]
[1726616758641,0.0392141,2341.9,2341.8,11.673127]
[1726616759353,0.0392141,2341.9,2341.8,12.23607202]
[1726616760461,0.0392141,2341.9,2341.8,16.50628202]
[1726616760648,0.0392141,2341.9,2341.8,20.05628202]
[1726616760856,0.0392141,2341.9,2341.8,20.95701401]
[1726616761460,0.0392141,2341.9,2341.8,19.493337]
[1726616761659,0.0392141,2341.9,2341.8,20.95643196]
[1726616762192,0.0392141,2341.9,2341.8,20.05606583]
[1726616764294,0.0392141,2341.9,2341.8,25.22657389]
[1726616764502,7.42,2342.5,2342.4,10.82234]
[1726616764681,0.0392141,2342.6,2342.5,8.53788]
[1726616770317,0.0392141,2342.6,2342.5,10.90925265]
[1726616772512,0.0392141,2342.6,2342.5,11.37388]
[1726616772711,0.0392141,2342.6,2342.5,14.37388]
[1726616772890,0.0392141,2342.6,2342.5,18.37388]
[1726616773091,0.0392141,2342.6,2342.5,20.97602996]
[1726616773676,0.0392141,2342.6,2342.5,25.24496996]
[1726616774319,0.0392141,2342.6,2342.5,20.97602996]
[1726616774836,0.0392141,2342.6,2342.5,10.87108996]
[1726616774974,0.0392141,2342.6,2342.5,4.26894]
[1726616776438,0.0392141,2342.6,2342.5,8.53788]
[1726616776612,0.0392141,2342.6,2342.5,4.35431091]
[1726616776814,0.0392141,2342.6,2342.5,8.62325051]
[1726616777740,0.0392141,2342.6,2342.5,8.53788]
[1726616777900,0.0392141,2342.6,2342.5,13.38798568]
[1726616778811,0.0392141,2342.6,2342.5,16.38798568]
[1726616780940,0.0392141,2342.6,2342.5,20.65692568]
[1726616781407,0.0392141,2342.6,2342.5,16.38798568]
[1726616781926,0.0392141,2342.6,2342.5,20.65692568]
[1726616782128,0.0392141,2342.6,2342.5,24.65692568]
[1726616783316,0.0392141,2342.6,2342.5,28.92586568]
[1726616783525,0.0392141,2343.3,2343.2,4.26766]
[1726616783729,0.0392141,2343.3,2343.2,7.5503528]
[1726616786468,0.0392141,2343.3,2343.2,8.1003528]
[1726616786966,2.3327141,2343.3,2342.8,4.26825]
[1726616787167,2.3327141,2343.3,2342.6,3.0]
[1726616787168,2.3327141,2343.3,2342.6,7.26863]
[1726616787351,2.3327141,2343.3,2342.7,7.5512528]
[1726616787668,2.3327141,2343.3,2342.8,4.26838]
[1726616788584,2.3327141,2343.3,2342.7,3.2826928]
[1726616788719,4.26776,2343.2,2342.7,3.2826928]
[1726616788926,2.4635,2343.1,2342.7,3.2826928]
[1726616790767,2.4635,2343.1,2342.6,9.15454285]
[1726616790768,2.4635,2343.0,2342.6,9.15454285]
[1726616791565,2.4635,2343.0,2342.5,3.2826928]
[1726616791736,2.4302,2342.7,2342.3,3.2826928]
[1726616791938,0.0392141,2343.3,2342.1,2.3794]
[1726616791939,2.4302,2342.5,2342.1,3.2826928]
[1726616792172,3.100099,2342.5,2341.9,3.2826928]
[1726616792375,2.4302,2342.5,2341.8,4.27009]
[1726616792529,4.26922,2342.4,2341.9,4.27003]
[1726616792730,4.26922,2342.4,2342.0,4.26985]
[1726616793177,4.269,2342.5,2342.0,4.26985]
[1726616793334,2.3435,2342.4,2342.0,4.26985]
[1726616793535,2.3435,2342.2,2341.7,7.5529228]
[1726616793737,2.3435,2342.2,2341.7,3.2826928]
[1726616793960,4.26968,2342.1,2341.6,4.27046]
[1726616794164,2.3435,2342.0,2341.6,4.27046]
[1726616794842,2.3435,2342.0,2341.7,3.0]
[1726616795177,2.3435,2342.0,2341.7,12.28090608]
[1726616796875,2.3435,2342.0,2341.8,4.27019]
[1726616802250,2.3435,2342.0,2341.9,4.27003]
[1726616802485,2.2651,2342.3,2341.9,4.27003]
[1726616805490,2.2651,2342.3,2341.8,8.5403]
[1726616805691,2.2651,2342.3,2341.9,1.65508361]
[1726616809201,2.2651,2342.3,2341.9,5.92498361]
[1726616809401,2.2651,2342.3,2342.0,4.26982]
[1726616809998,2.2651,2342.3,2341.9,4.93777641]
[1726616810961,2.2651,2342.3,2341.9,9.29305977]
[1726616811291,2.2651,2342.3,2341.9,9.20766641]
[1726616815357,2.2651,2342.3,2342.0,1.58792264]
[1726616815784,2.2651,2342.3,2342.0,5.85772264]
[1726616818060,2.2506,2342.2,2341.7,7.27026]
[1726616818288,2.2506,2342.2,2341.8,4.27013]
[1726616820213,2.2506,2342.2,2341.9,4.26987]
[1726616820365,2.2506,2342.2,2342.0,4.26976]
[1726616820560,2.2506,2342.2,2342.1,1.18223228]
[1726616821858,2.2506,2342.2,2341.9,8.5398]
[1726616822218,2.2506,2342.2,2341.9,8.53981]
[1726616822370,2.2506,2342.2,2341.9,4.26987]
[1726616822768,2.2506,2342.2,2341.9,8.53981]
[1726616822998,2.2506,2342.2,2341.9,4.26987]
[1726616824263,2.2506,2342.2,2341.9,5.75215328]
[1726616827396,6.67187,2342.1,2341.7,3.0]
[1726616827614,2.4021,2342.0,2341.7,7.27036]
[1726616828310,2.4021,2342.0,2341.8,4.27019]
[1726616828464,2.4021,2342.0,2341.9,0.727019]
[1726616830865,2.4021,2342.0,2341.6,4.27047]
[1726616835074,2.4021,2342.0,2341.7,4.26899812]
[1726616835979,2.4021,2342.0,2341.6,8.54096]
[1726616836505,2.4021,2342.0,2341.7,0.56298945]
[1726616837225,2.4021,2342.0,2341.6,8.54096]
[1726616837516,2.4021,2342.0,2341.7,0.56296073]
[1726616837749,2.4021,2342.0,2341.8,0.56296073]
[1726616837944,2.4021,2342.0,2341.6,8.54096]
[1726616838247,2.4021,2342.0,2341.7,0.56296884]
[1726616838534,2.4021,2342.0,2341.8,0.56296884]
[1726616838709,2.4021,2342.0,2341.6,9.96911528]
[1726616838710,2.4021,2342.0,2341.6,5.69862528]
[1726616838911,2.4021,2342.0,2341.7,0.56295592]
[1726616839137,2.4021,2342.0,2341.8,0.56295592]
[1726616839344,2.4021,2342.0,2341.6,9.96910528]
[1726616839492,2.4021,2342.0,2341.7,0.56293205]
[1726616839698,2.4021,2342.0,2341.8,0.56293205]
[1726616839940,2.4021,2342.0,2341.7,1.51498978]
[1726616841121,2.4021,2342.0,2341.8,0.56293906]
[1726616843430,2.4021,2342.0,2341.7,1.51498978]
[1726616843960,2.4021,2342.0,2341.7,5.78537978]
[1726616844143,2.4021,2342.0,2341.8,0.56293981]
[1726616844321,2.4021,2342.0,2341.7,7.02386051]
[1726616847168,2.4021,2342.0,2341.8,0.56293632]
[1726616847532,2.4021,2342.0,2341.7,7.02386051]
[1726616847733,2.4021,2342.0,2341.7,5.78537978]
[1726616849054,2.4021,2342.0,2341.8,0.56294011]
[1726616849247,2.4021,2342.0,2341.7,5.78537978]
[1726616850634,2.4021,2342.0,2341.7,6.3482963]
[1726616851030,2.4021,2342.0,2341.7,5.78537978]
[1726616851481,2.4021,2342.0,2341.8,4.2702]
[1726616851774,8.53887,2342.3,2342.1,4.26949]
[1726616851775,2.3782,2342.3,2342.1,4.26949]
[1726616851926,2.3782,2342.3,2342.2,5.78447978]
[1726616852767,2.3782,2342.3,2342.2,1.51498978]
[1726616853446,2.3782,2342.3,2342.2,5.78447978]
[1726616853646,2.259,2342.6,2342.3,4.26929]
[1726616855681,2.259,2342.6,2342.2,2.52038676]
[1726616855858,2.259,2342.6,2342.2,1.51498978]
[1726616856061,2.259,2342.6,2342.2,5.78437978]
[1726616860890,4.26825,2342.9,2342.4,1.51498978]
[1726616861093,11.68815,2343.0,2342.4,1.51498978]
[1726616861094,2.4571,2342.8,2342.6,1.51498978]
[1726616864668,2.4571,2342.8,2342.7,4.26857]
[1726616864967,2.4833,2343.1,2342.7,4.26857]
[1726616865499,2.4833,2343.1,2342.8,4.26839]
[1726616865707,2.4833,2343.1,2343.0,1.51498978]
[1726616866189,2.4833,2343.1,2342.8,10.05164978]
[1726616866598,2.4833,2343.1,2342.8,5.78325978]
[1726616871107,2.4833,2343.1,2342.8,4.26827]
[1726616871296,4.26804,2343.0,2342.4,10.05298978]
[1726616871620,2.4604,2342.9,2342.5,4.26885]
[1726616875735,2.4604,2342.9,2342.6,4.26875]
[1726616879496,2.4604,2342.9,2342.6,9.54259598]
[1726616879697,2.4604,2342.9,2342.6,6.78892576]
[1726616881308,2.4604,2342.9,2342.6,5.78364978]
[1726616884222,2.4604,2342.9,2342.8,4.26839]
[1726616884632,2.4581,2343.2,2342.8,4.26839]
[1726616886360,2.4581,2343.2,2342.9,4.26817]
[1726616887066,6.72587,2343.2,2342.7,4.26843]
[1726616887461,6.72587,2343.2,2342.8,4.26837]
[1726616890358,10.9937,2343.2,2342.7,4.26857]
[1726616890558,10.9937,2343.2,2342.2,3.0]
[1726616890559,2.4752,2342.9,2342.4,4.26897]
[1726616892024,2.4752,2342.9,2342.6,4.26873]
[1726616892863,2.4752,2342.9,2342.4,8.53796]
[1726616893021,2.4752,2342.9,2342.5,4.26891]
[1726616896354,2.4752,2342.9,2342.6,4.26865]
[1726616897230,2.4752,2342.9,2342.6,4.26875]
[1726616902153,2.4752,2342.9,2342.6,4.83121714]
[1726616902477,2.4752,2342.9,2342.7,4.26851]
[1726616905146,2.4752,2342.9,2342.7,4.83085308]
[1726616905352,2.4752,2342.9,2342.7,4.26851]
[1726616909212,2.4752,2342.9,2342.6,4.26875]
[1726616909581,2.4752,2342.9,2342.7,0.56232857]
[1726616909788,2.4752,2342.9,2342.6,4.26875]
[1726616909988,2.4752,2342.9,2342.7,0.56234075]
[1726616910307,2.4752,2342.9,2342.6,4.26875]
[1726616910459,2.4752,2342.9,2342.7,0.5623411]
[1726616910654,2.4752,2342.9,2342.6,4.26875]
[1726616910862,2.4752,2342.9,2342.5,4.26881]
[1726616911087,2.4752,2342.9,2342.6,0.56241659]
[1726616911273,2.4752,2342.9,2342.5,4.26881]
[1726616911472,2.4752,2342.9,2342.6,0.56242224]
[1726616911803,6.7435,2342.9,2342.4,4.26899]
[1726616912002,4.2683,2342.9,2342.4,4.26899]
[1726616912306,4.2684,2342.8,2342.5,0.56243299]
[1726616912455,4.2684,2342.8,2342.3,5.16913279]
[1726616912456,2.4902,2342.7,2342.3,4.26924]
[1726616912656,2.4902,2342.7,2342.4,0.56252814]
[1726616912907,2.4902,2342.7,2342.3,4.26924]
[1726616913914,2.4902,2342.7,2342.4,0.56255028]
[1726616914101,2.4902,2342.7,2342.3,4.26924]
[1726616914273,2.4902,2342.7,2342.4,0.5625527]
[1726616914472,2.4902,2342.7,2342.3,8.53845]
[1726616914810,2.4902,2342.7,2342.4,0.56253992]
[1726616915013,2.4902,2342.7,2342.3,4.26921]
[1726616915311,2.4902,2342.7,2342.4,0.56253127]
[1726616915474,2.4902,2342.7,2342.3,4.26921]
[1726616915675,2.4902,2342.7,2342.4,0.56252056]
[1726616915896,2.4902,2342.7,2342.3,4.26921]
[1726616916410,2.4902,2342.7,2342.4,0.56253818]
[1726616916586,2.4902,2342.7,2342.3,4.26921]
[1726616916770,2.4902,2342.7,2342.4,0.56252691]
[1726616916970,2.4902,2342.7,2342.3,4.26921]
[1726616917213,2.4393,2342.9,2342.6,1.51498978]
[1726616917381,9.70181272,2343.3,2342.5,2.3426]
[1726616917382,2.4393,2343.1,2342.8,1.51498978]
[1726616917583,2.4393,2343.1,2342.9,4.2682]
[1726616921316,2.4785141,2343.3,2342.9,8.53632]
[1726616921623,2.4785141,2343.3,2342.9,4.26812]
[1726616921908,2.4785141,2343.3,2342.8,8.68824409]
[1726616921909,6.7460041,2343.3,2342.8,8.68824409]
[1726616922110,6.7460041,2343.3,2342.8,8.12595978]
[1726616922416,4.26767,2343.2,2342.8,1.12459367]
[1726616922570,4.26767,2343.2,2342.8,0.56229674]
[1726616922775,4.26767,2343.2,2342.7,4.26846]
[1726616922975,2.3075,2343.1,2342.7,4.26846]
[1726616923195,2.3075,2343.1,2342.7,5.31058887]
[1726616924302,2.3075,2343.1,2342.7,9.57907887]
[1726616926895,2.3075,2343.1,2342.7,5.31058887]
[1726616927391,2.3075,2343.1,2342.7,4.26846]
[1726616928605,2.3075,2343.1,2342.8,4.26836]
[1726616929629,2.3075,2343.1,2342.7,4.26846]
[1726616929630,2.3075,2343.1,2342.7,8.53694]
[1726616930223,2.3075,2343.1,2342.7,4.26846]
[1726616930726,2.3075,2343.1,2342.7,8.53695]
[1726616930930,2.3075,2343.1,2342.7,4.26846]
[1726616931507,2.3075,2343.1,2342.8,4.26825]
[1726616934838,2.3075,2343.1,2342.8,5.50289998]
[1726616935352,2.3476141,2343.3,2342.9,4.26817]
[1726616936959,6.6151241,2343.3,2342.8,5.50289998]
[1726616937127,6.6151241,2343.3,2342.8,4.26825]
[1726616937736,2.3371,2343.1,2342.7,4.26847]
[1726616939508,2.3371,2343.1,2342.8,4.26838]
[1726616939925,2.3371,2343.1,2342.9,4.26818]
[1726616940123,2.3371,2343.1,2342.9,4.26821]
[1726616940328,2.4553141,2343.3,2342.9,5.360089]
[1726616940544,2.4553141,2343.3,2343.0,4.26799]
[1726616945672,2.4553141,2343.3,2343.0,4.26794]
[1726616946174,2.4553141,2343.3,2343.0,8.53585]
[1726616946353,2.4553141,2343.3,2343.1,4.26782]
[1726616946533,2.4553141,2343.3,2343.0,4.26791]
[1726616946729,2.4553141,2343.3,2343.1,0.5359789]
[1726616948162,2.4553141,2343.3,2343.1,4.8038189]
[1726616949577,2.4553141,2343.3,2343.0,4.26802]
[1726616950664,2.4553141,2343.3,2343.0,8.53596]
[1726616950988,2.4553141,2343.3,2342.8,5.78324978]
[1726616951190,2.3879,2343.2,2342.8,8.53656]
[1726616952393,2.3879,2343.2,2342.8,9.85666777]
[1726616953490,2.3879,2343.2,2342.9,4.26812]
[1726616957305,4.26777,2343.2,2342.7,4.26852]
[1726616957459,2.4821,2343.1,2342.6,5.78359978]
[1726616957658,2.4821,2343.1,2342.8,4.26826]
[1726616958092,2.4821,2343.1,2342.8,8.53656]
[1726616958292,2.4821,2343.1,2342.8,4.26826]
[1726616959307,2.4821,2343.1,2342.7,4.26856]
[1726616960374,2.4821,2343.1,2342.8,4.26839]
[1726616970613,6.6933741,2343.3,2342.9,2.4756]
[1726616970827,0.0392141,2343.3,2343.0,5.78299978]
[1726616971116,0.0392141,2343.3,2343.1,0.82585998]
[1726616972214,2.4109,2343.2,2343.0,4.26792]
[1726616972376,2.4109,2343.2,2342.9,4.26819]
[1726616973093,2.4109,2343.2,2342.8,10.05152978]
[1726616973621,2.4109,2343.2,2342.9,4.26818]
[1726616973829,0.0392141,2343.3,2342.9,4.26818]
[1726616975201,0.0392141,2343.3,2343.0,5.78284978]
[1726616984334,0.0392141,2343.3,2342.9,4.26818]
[1726616985121,0.0392141,2343.3,2342.9,4.26812]
[1726616985441,0.0392141,2343.3,2342.9,8.53625]
[1726616985442,2.3092,2343.2,2342.9,8.53625]
[1726616987031,2.3092,2343.2,2343.0,4.82963925]
[1726616987238,0.0392141,2343.3,2343.0,5.3291749]
[1726616987436,0.0392141,2343.3,2343.1,4.26784]
[1726616992331,0.0392141,2343.3,2343.2,12.44245952]
[1726616992632,0.0392141,2343.3,2343.2,12.91861156]
[1726616993899,0.0392141,2343.3,2343.2,13.46846664]
[1726616994107,0.0392141,2343.3,2343.2,15.34822379]
[1726616999959,0.0392141,2343.3,2343.2,22.61588379]
[1726617000164,0.0392141,2343.3,2343.2,22.62468379]
[1726617000514,0.0392141,2343.3,2343.2,22.06332693]
[1726617000718,0.0392141,2343.3,2343.2,22.62429842]
[1726617001827,0.0392141,2343.3,2343.2,26.33098693]
[1726617002227,0.0392141,2343.3,2343.2,26.8917976]
[1726617002557,0.0392141,2343.3,2343.2,30.8917976]
[1726617002762,0.0392141,2343.3,2343.2,32.01341894]
[1726617003114,0.0392141,2343.3,2343.2,30.49842916]
[1726617003320,0.0392141,2343.3,2343.2,32.01341894]
[1726617004655,0.0392141,2343.3,2343.2,28.01341894]
[1726617004854,0.0392141,2343.3,2343.2,26.8917976]
[1726617005663,0.0392141,2343.3,2343.2,26.89163005]
[1726617005960,0.0392141,2343.3,2343.2,27.45226207]
[1726617006659,0.0392141,2344.0,2343.9,6.64049]
[1726617006898,0.0392141,2344.0,2343.9,8.81952878]
[1726617008205,0.0392141,2344.0,2343.9,6.44542878]
[1726617010507,0.0392141,2344.0,2343.9,10.71181878]
[1726617011083,0.0392141,2344.0,2343.9,6.44542878]
[1726617011988,0.0392141,2344.0,2343.9,10.71181878]
[1726617012297,0.0392141,2344.0,2343.9,6.44542878]
[1726617013291,0.0392141,2344.0,2343.9,10.71181878]
[1726617014598,0.0392141,2344.0,2343.9,20.87770878]
[1726617014802,0.0392141,2344.0,2343.9,15.096329]
[1726617015002,0.0392141,2344.0,2343.9,16.61131878]
[1726617015173,0.0392141,2344.0,2343.9,9.196829]
[1726617015380,0.0392141,2344.0,2343.9,8.53278]
[1726617015686,0.0392141,2344.0,2343.9,10.04776978]
[1726617016789,0.0392141,2344.0,2343.9,13.04776978]
[1726617018490,0.0392141,2344.0,2343.9,15.34396978]
[1726617018892,0.0392141,2344.0,2343.9,15.89396978]
[1726617019100,0.0392141,2344.0,2343.9,18.33668576]
[1726617022605,0.0392141,2344.0,2343.9,16.04048576]
[1726617030132,0.0392141,2344.0,2343.9,18.43928576]
[1726617034734,0.0392141,2344.0,2343.9,16.04048576]
[1726617038146,0.0392141,2344.0,2343.9,16.60084503]
[1726617038351,0.0392141,2344.0,2343.9,16.04048576]
[1726617038555,0.0392141,2344.0,2343.9,16.60083299]
[1726617039064,0.0392141,2344.0,2343.9,16.04048576]
[1726617039233,0.0392141,2344.0,2343.9,16.60044496]
[1726617040273,0.0392141,2344.0,2343.9,16.60035361]
[1726617041561,0.0392141,2344.0,2343.9,16.04048576]
[1726617041760,0.0392141,2344.0,2343.9,16.60032102]
[1726617041962,0.0392141,2344.0,2343.9,19.06802102]
[1726617043070,0.0392141,2344.0,2343.9,19.96420345]
[1726617043271,0.0392141,2344.0,2343.9,19.06833022]
[1726617043572,0.0392141,2344.0,2343.9,19.96456446]
[1726617043869,0.0392141,2344.0,2343.9,19.96451573]
[1726617047768,0.0392141,2344.0,2343.9,24.23096584]
[1726617048067,0.0392141,2344.0,2343.9,19.96457584]
[1726617048291,0.0392141,2344.0,2343.9,18.50818576]
[1726617048459,0.0392141,2344.0,2343.9,24.23091755]
[1726617048783,0.0392141,2344.0,2343.9,19.96452755]
[1726617049688,0.0392141,2344.0,2343.9,24.23091755]
[1726617050278,0.0392141,2344.0,2343.9,19.96452755]
[1726617050779,0.0392141,2344.0,2343.9,24.23091755]
[1726617050946,0.0392141,2344.0,2343.9,19.96452755]
[1726617051456,0.0392141,2344.0,2343.9,24.23091755]
[1726617052585,0.0392141,2344.0,2343.9,19.96452755]
[1726617052788,0.0392141,2344.0,2343.9,19.96456345]
[1726617053381,0.0392141,2344.0,2343.9,17.49686345]
[1726617054989,0.0392141,2344.0,2343.9,16.04048576]
[1726617055288,0.0392141,2344.0,2343.9,18.9533063]
[1726617058415,0.0392141,2344.0,2343.9,21.2104063]
[1726617059697,0.0392141,2344.0,2343.9,25.4767963]
[1726617060503,0.0392141,2344.0,2343.9,29.4767963]
[1726617061207,0.0392141,2344.0,2343.9,28.02038443]
[1726617061415,0.0392141,2344.0,2343.9,29.4757613]
[1726617061714,0.0392141,2344.0,2343.9,28.02038443]
[1726617062015,0.0392141,2344.0,2343.9,29.47562991]
[1726617063543,0.0392141,2344.0,2343.9,25.47562991]
[1726617063900,0.0392141,2344.0,2343.9,24.01922124]
[1726617064708,0.0392141,2344.0,2343.9,22.56397576]
[1726617064901,0.0392141,2344.0,2343.9,24.02041241]
[1726617065242,0.0392141,2344.0,2343.9,28.02041241]
[1726617065997,0.0392141,2344.7,2343.9,12.96414241]
[1726617066202,0.0392141,2344.7,2344.6,18.83133]
[1726617066446,0.0392141,2344.7,2344.6,15.12638794]
[1726617066967,2.2973141,2344.7,2344.6,0.56016794]
[1726617067245,2.2973141,2344.7,2344.6,5.78009978]
[1726617070803,2.2973141,2344.7,2344.4,4.26535]
[1726617070804,2.2973141,2344.7,2344.4,4.82540451]
[1726617071007,2.2987,2344.6,2344.2,11.53146]
[1726617071232,2.2987,2344.6,2344.2,12.09151451]
[1726617071550,2.2987,2344.6,2344.2,11.53146]
[1726617072038,2.2987,2344.6,2344.3,4.26561]
[1726617072405,2.2987,2344.6,2344.4,4.26547]
[1726617073029,2.2987,2344.6,2344.4,10.04583978]
[1726617073215,2.2987,2344.6,2344.4,5.78036978]
[1726617073514,2.2987,2344.6,2344.5,4.2653]
[1726617076439,0.0392141,2344.7,2344.6,4.26511]
[1726617076644,0.0392141,2344.7,2344.6,5.78009978]
[1726617080404,0.0392141,2344.7,2344.5,9.53503698]
[1726617080645,0.0392141,2344.7,2344.5,4.2652]
[1726617080646,2.4551,2344.6,2344.5,4.2652]
[1726617081050,2.4551,2344.6,2344.4,8.53079]
[1726617081411,2.4551,2344.6,2344.5,4.2653]
[1726617082555,0.0392141,2344.7,2344.6,4.26511]
[1726617082857,0.0392141,2344.7,2344.6,6.79316994]
[1726617083261,0.0392141,2344.7,2344.6,5.78009978]
[1726617084054,0.0392141,2344.7,2344.6,10.04520978]
[1726617087137,0.0392141,2344.7,2344.3,7.62647315]
[1726617087138,0.0392141,2344.7,2344.5,4.26516]
[1726617087354,2.48,2344.6,2344.3,4.26554]
[1726617087563,2.48,2344.6,2344.2,0.4457777]
[1726617087884,2.48,2344.6,2344.1,8.53181]
[1726617088052,2.48,2344.6,2344.2,4.26582]
[1726617088567,2.48,2344.6,2344.3,4.26564]
[1726617090327,2.48,2344.6,2344.4,1.51498978]
[1726617095485,2.48,2344.6,2344.3,4.26557]
[1726617095681,2.48,2344.6,2344.2,5.78082978]
[1726617097038,2.359,2344.5,2344.1,8.53181]
[1726617097168,2.359,2344.5,2344.1,4.26589]
[1726617097364,2.359,2344.5,2344.2,5.78068978]
[1726617098462,2.359,2344.5,2344.3,4.26565]
[1726617100698,2.359,2344.5,2344.2,5.78081978]
[1726617101083,2.359,2344.5,2344.3,4.26566]
[1726617102821,2.359,2344.5,2344.2,5.78082978]
[1726617103912,2.3866141,2344.7,2344.4,5.78034978]
[1726617104116,2.3866141,2344.7,2344.4,5.78042978]
[1726617104582,2.3866141,2344.7,2344.5,4.26527]
[1726617104784,2.3866141,2344.7,2344.3,4.26555]
[1726617105084,2.3866141,2344.7,2344.3,5.78053978]
[1726617105289,2.3866141,2344.7,2344.2,7.71097262]
[1726617106484,2.3866141,2344.7,2344.3,1.51498978]
[1726617107000,2.3866141,2344.7,2344.3,5.78063978]
[1726617113454,2.3258,2344.6,2344.2,3.44513262]
[1726617113635,2.3258,2344.5,2344.2,3.44513262]
[1726617120156,2.3258,2344.5,2344.2,7.71097262]
[1726617120730,2.3258,2344.5,2344.2,3.44513262]
[1726617121225,2.3258,2344.5,2344.2,7.71097262]
[1726617121748,2.3258,2344.5,2344.2,3.44513262]
[1726617122437,2.4956,2344.2,2343.6,2.4911]
[1726617122667,2.4956,2344.2,2343.5,0.89528902]
[1726617122668,2.4956,2344.0,2343.5,4.26699]
[1726617122961,2.4956,2343.8,2343.4,0.89580628]
[1726617123113,2.4956,2343.8,2343.7,4.0]
[1726617123527,4.26657,2343.8,2343.7,4.0]
[1726617123752,2.3761,2343.7,2343.3,4.26737]
[1726617124955,4.26679,2343.7,2343.1,8.53543]
[1726617125165,2.3761,2343.6,2343.1,4.2677]
[1726617125368,2.3761,2343.6,2343.2,4.26759]
[1726617125572,4.26723,2343.5,2342.9,4.26806]
[1726617125720,2.3133,2343.4,2342.9,4.26806]
[1726617126422,2.3133,2343.4,2342.9,8.53615]
[1726617126643,2.3133,2343.4,2342.9,4.26806]
[1726617127546,2.3133,2343.4,2343.0,4.268]
[1726617130535,7.54474019,2344.0,2342.9,4.71347689]
[1726617130536,7.42,2343.8,2343.4,0.55]
[1726617130739,7.42,2343.8,2343.7,7.54517019]
[1726617131035,7.42,2343.8,2343.5,7.54547019]
[1726617131236,7.42,2343.8,2343.6,4.2669]
[1726617132926,7.42,2343.8,2343.7,4.26675]
[1726617133339,7.42,2343.8,2343.7,12.99312721]
[1726617133672,7.42,2343.8,2343.7,15.85902721]
[1726617133868,14.521,2344.2,2344.1,4.26602]
[1726617133869,2.391,2344.2,2344.1,4.26602]
[1726617134732,2.391,2344.2,2343.9,8.53253]
[1726617135562,2.391,2344.2,2343.9,4.26621]
[1726617135866,2.3065,2344.5,2344.2,4.26568]
[1726617136160,2.3457141,2344.7,2344.3,7.54403019]
[1726617136731,2.3457141,2344.7,2344.3,4.26561]
[1726617137763,2.3457141,2344.7,2343.9,6.77389391]
[1726617137764,6.6106741,2344.7,2343.9,6.77389391]
[1726617137967,6.6106741,2344.7,2344.0,3.92787979]
[1726617138388,6.6106741,2344.7,2344.1,3.27842019]
[1726617138698,6.6106741,2344.7,2344.2,4.26573]
[1726617138912,7.69821251,2344.7,2344.2,4.26573]
[1726617141293,7.69821251,2344.7,2344.1,11.81019019]
[1726617142139,7.69821251,2344.7,2344.2,4.26584]
[1726617142401,7.69821251,2344.7,2344.1,11.81015019]
[1726617143954,11.96328251,2344.7,2344.1,11.81015019]
[1726617144369,4.26512,2344.6,2344.1,11.81021019]
[1726617144766,4.26512,2344.6,2344.1,7.54427019]
[1726617145377,4.26512,2344.6,2344.1,11.81021019]
[1726617145583,4.26512,2344.6,2344.1,7.54427019]
[1726617145897,4.26512,2344.6,2344.0,3.84256837]
[1726617145898,2.3671,2344.4,2344.0,8.10870837]
[1726617146101,4.26536,2344.5,2343.7,4.26662]
[1726617146102,2.3671,2344.5,2343.7,4.26662]
[1726617146478,2.3671,2344.1,2343.7,4.26662]
[1726617146821,2.3671,2344.1,2343.7,8.53328]
[1726617147170,2.3671,2344.1,2343.7,4.26662]
[1726617148922,2.3671,2344.1,2343.7,8.53328]
[1726617149214,2.3671,2344.1,2343.7,13.22692021]
[1726617149372,2.3671,2344.1,2343.7,8.96025021]
[1726617149568,2.3671,2344.1,2343.7,13.22690021]
[1726617151620,2.3671,2344.1,2343.8,4.26655]
[1726617152524,2.3671,2344.5,2344.1,4.26593]
[1726617158655,4.26534,2344.5,2343.9,7.54468019]
[1726617158806,4.2656,2344.4,2343.9,4.26626]
[1726617159006,6.61538,2344.3,2343.8,4.26653]
[1726617159324,6.61538,2344.3,2343.8,7.54495019]
[1726617159526,6.61538,2344.3,2343.8,8.97529621]
[1726617161150,6.61538,2344.3,2343.9,4.26637]
[1726617162812,4.26542,2344.5,2343.8,4.70876621]
[1726617162813,2.2842,2344.5,2344.2,4.26582]
[1726617163149,2.2842,2344.5,2344.2,7.54424019]
[1726617165518,2.2842,2344.5,2344.2,11.80997019]
[1726617165717,2.2842,2344.5,2344.3,1.18952813]
[1726617165924,2.2842,2344.5,2344.2,7.54415019]
[1726617168724,2.3480141,2344.7,2344.2,7.54414019]
[1726617169357,2.3480141,2344.7,2344.3,4.26557]
[1726617170430,6.6129741,2344.7,2344.2,7.54414019]
[1726617170824,6.6129741,2344.7,2344.2,11.80989019]